Cogmind - Beta 15 @@@ ROGUE MODE // 2025.06.03 @ 10:07:41 // Winter2019/RPGLIKE Player: Jack Result: Self-destructed Performance ------------- Evolutions (1) 500 Regions Visited (2) 400 Robots Destroyed (13) 65 Value Destroyed (485) 485 Prototype IDs (0) 0 Alien Tech Used (0) 0 Bonus (0) 0 TOTAL SCORE: 1450 Bonus ------- None Cogmind --------- Core Integrity 220/600 Matter 300/300 Energy 99/100 System Corruption 0% Temperature Cool (6) Movement Core (50) Location -9/Materials Parts ------- > --- POWER (1) -------- (None) > --- PROPULSION (2) --- (None) > --- UTILITY (1) ------ (None) > --- WEAPON (3) ------- Medium Laser Small Laser > --- INVENTORY (0) ---- (None) Peak State ------------ > --- POWER ------------ (None) > --- PROPULSION ------- (None) > --- UTILITY ---------- (None) > --- WEAPON ----------- Medium Laser Small Laser > --- INVENTORY -------- (None) [Rating: 2] Favorites ----------- Power None Propulsion None Utility None Weapon Small Laser Energy Gun Small Laser Build | -11 -10 -9 ------- Run | Yrd Mat Mat Slots Evolved 3 | 2 . 1 Power . | . . . Propulsion 1 | 1 . . Utility . | . . . Weapon 2 | 1 . 1 Parts Attached 2 | 2 . . Power . | . . . Engine . | . . . Core . | . . . Reactor . | . . . Propulsion . | . . . Treads . | . . . Leg . | . . . Wheel . | . . . Hover . | . . . Flight . | . . . Utility . | . . . Device . | . . . Storage . | . . . Processor . | . . . Hackware . | . . . Protection . | . . . Artifact . | . . . Weapon 2 | 2 . . Energy Gun 2 | 2 . . Energy Cannon . | . . . Ballistic Gun . | . . . Ballistic Cannon . | . . . Launcher . | . . . Special Weapon . | . . . Impact Weapon . | . . . Slashing Weapon . | . . . Piercing Weapon . | . . . Special Melee Weapon . | . . . Unidentified Prototypes . | . . . Parts Lost . | . . . Power . | . . . Propulsion . | . . . Utility . | . . . Weapon . | . . . Highest Loss Streak . | . . . To Critical Strikes . | . . . Average Backups . | . . . Power . | . . . Propulsion . | . . . Utility . | . . . Weapon . | . . . Tool/Special . | . . . Unused Backups . | . . . Power . | . . . Propulsion . | . . . Utility . | . . . Weapon . | . . . Tool/Special . | . . . Average Slot Usage (%) 31 | . 33 28 Energy Gun 31 | . 33 28 Peak Build Rating 2 | 2 2 2 Average Rating 1 | . 2 2 On Entrance 1 | . 2 2 Naked Turns . | . . . Heaviest Build 3 | 3 3 3 Greatest Support 3 | 3 3 3 Greatest Overweight (x) . | . . . Average Overweight (x) . | . . . Largest Inventory Capacity . | . . . Average Capacity . | . . . Most Carried . | . . . Average Carried . | . . . Final Capacity . | . . . Final Carried . | . . . Class Distribution -------------------- 100% | Hacker-Mutant Dominant Class ---------------- Hacker-Mutant | -10/Materials Hacker-Mutant | -9/Materials Resources | -11 -10 -9 ----------- Run | Yrd Mat Mat Matter Collected 220 | 200 20 . Remotely . | . . . Salvage Created 584 | . 442 142 Parts 21 | . 16 5 Haulers Intercepted . | . . . Recyclers Shooed . | . . . Parts Field Recycled . | . . . Retrieved Matter . | . . . Parts Self-Destructed . | . . . Prevented . | . . . Kills | -11 -10 -9 ------- Run | Yrd Mat Mat Combat Hostiles Destroyed 12 | . 9 3 Guns 12 | . 9 3 Classes Destroyed 3 | . 2 1 Watcher 1 | . 1 . Grunt 10 | . 9 1 Sentry 2 | . . 2 Best Kill Streak 3 | . 3 1 Combat Bots Only 3 | . 3 1 Max Kills in Single Turn 1 | . 1 1 Gunslinging . | . . . Exploded . | . . . Melee . | . . . Uniques/NPCs Destroyed . | . . . Combat | -11 -10 -9 -------- Run | Yrd Mat Mat Hostile Shots Fired 74 | . 49 25 Missed 22 | . 14 8 Hits 52 | . 35 17 Projectile 52 | . 35 17 Critical Strikes 1 | . 1 . Damage Taken 686 | . 450 236 Core 617 | . 392 225 Absorbed by Shields . | . . . Redirected to Core 230 | . 189 41 Core Remaining (%) 78 | 100 57 . Volleys Fired 49 | . 37 12 Largest 2 | . 2 2 Hottest 90 | . 90 90 Shots Fired 98 | . 74 24 Gun 98 | . 74 24 Cannon . | . . . Launcher . | . . . Special . | . . . Kinetic . | . . . Thermal 98 | . 74 24 Explosive . | . . . Electromagnetic . | . . . Robot Hit Streak 14 | . 9 14 Robot Miss Streak 3 | . 2 3 Penetration Max . | . . . Secondary Targets . | . . . Shots Hit Robots 75 | . 56 19 Core Hits 28 | . 22 6 Critical Kills . | . . . Critical Parts Destroyed . | . . . Critical Strikes 2 | . 1 1 Burn 2 | . 1 1 Melee Attacks . | . . . Impact . | . . . Slashing . | . . . Piercing . | . . . Sneak Attacks . | . . . Combat Hostiles . | . . . Follow-up Attacks . | . . . Damage Inflicted 891 | . 668 223 Guns 891 | . 668 223 Cannons . | . . . Explosions . | . . . Melee . | . . . Ramming . | . . . Kinetic . | . . . Thermal 891 | . 668 223 Explosive . | . . . Electromagnetic . | . . . Impact . | . . . Slashing . | . . . Piercing . | . . . Highest Corruption . | . . . Average Corruption . | . . . Corruption Purged . | . . . Corruption Blocked . | . . . Overload Shots . | . . . Overflow Damage . | . . . Projectiles . | . . . Explosions . | . . . Melee . | . . . Knockbacks . | . . . Impact . | . . . Kinetic . | . . . Secondary . | . . . Self-Inflicted Damage . | . . . Shots . | . . . Rammed . | . . . Targets Rammed . | . . . Kicked . | . . . Crushed . | . . . Highest Temperature 178 | . 178 130 Average Temperature 67 | . 74 47 Received Heat Transfer 375 | . 267 108 Siege Activations . | . . . Martial Activations . | . . . Shielding Activations . | . . . Robots Disrupted . | . . . Combat Hostiles . | . . . Robots Corrupted . | . . . Combat Hostiles . | . . . Parts Fried . | . . . Impact Corruptions . | . . . Robots Melted . | . . . Combat Hostiles . | . . . Parts Melted 8 | . 3 5 Heat Transferred 2503 | . 1834 669 Parts Sabotaged . | . . . Parts Stolen . | . . . Parts Stripped . | . . . Power Chain Reactions . | . . . Alert | -11 -10 -9 ------- Run | Yrd Mat Mat Maximum Alert Level . | . . . Low Security (%) 100 | 100 100 100 Level 1 . | . . . Level 2 . | . . . Level 3 . | . . . Level 4 . | . . . Level 5 . | . . . High Security . | . . . Max Security . | . . . Peak Influence 130 | . 130 90 Initial 50 | . . 50 Average 46 | . 42 63 Influence Increases 337 | . 227 110 Destroy 0b10 Robot/C 240 | . 180 60 Destroy 0b10 Robot/NC 5 | . 5 . Destroy Leader 62 | . 42 20 Partial Spotted 15 | . . 15 Lose Combat Pursuer 15 | . . 15 Influence Decreases 257 | . 107 150 Entered New Map 70 | . . 70 Time Decay 187 | . 107 80 Squads Dispatched 3 | . 2 1 Investigation . | . . . Extermination . | . . . Reinforcement 3 | . 2 1 Assault . | . . . Garrison . | . . . Intercept . | . . . Searches Triggered . | . . . Construction Impeded . | . . . Haulers Reinforced . | . . . Active Scanning Responses . | . . . Cargo Convoy Interrupts . | . . . Stealth | -11 -10 -9 --------- Run | Yrd Mat Mat Distress Signals 1 | . 1 . Communications Jammed . | . . . Distress Signals . | . . . Times Spotted 19 | . 11 8 Peak Tracking Total 5 | . 5 2 Tactical Retreats 1 | . . 1 Traps | -11 -10 -9 ------- Run | Yrd Mat Mat Traps Triggered . | . . . Indirectly . | . . . Trap Hack Attempts . | . . . Triggered . | . . . Disarmed . | . . . Reprogrammed . | . . . Reused . | . . . Traps Extracted . | . . . Installed . | . . . Triggered . | . . . Machines | -11 -10 -9 ---------- Run | Yrd Mat Mat Machines Disabled . | . . . Max in Single Turn . | . . . Machines Repaired . | . . . Machines Dismantled . | . . . Machines Sabotaged . | . . . Overloaded Fab Kills . | . . . Hacking | -11 -10 -9 --------- Run | Yrd Mat Mat Machines Accessed . | . . . Terminals . | . . . Fabricators . | . . . Repair Stations . | . . . Recycling Units . | . . . Scanalyzers . | . . . Garrison Access . | . . . Total Hacks . | . . . Successful . | . . . Failed . | . . . Catastrophic . | . . . Database Lockouts . | . . . Manual . | . . . Terminals . | . . . Fabricators . | . . . Repair Stations . | . . . Recycling Units . | . . . Scanalyzers . | . . . Garrison Access . | . . . Terminal Hacks . | . . . Fabricator Hacks . | . . . Repair Station Hacks . | . . . Recycling Unit Hacks . | . . . Scanalyzer . | . . . Garrison Access Hacks . | . . . Unauthorized Hacks . | . . . Terminals . | . . . Fabricators . | . . . Repair Stations . | . . . Recycling Units . | . . . Scanalyzers . | . . . Garrison Access . | . . . Data Cores Recovered . | . . . Used . | . . . Hacking Detections . | . . . Full Trace Events . | . . . Feedback Events . | . . . Feedback Blocked . | . . . Robot Schematics Acquired . | . . . Robots Built . | . . . Authchips . | . . . Time . | . . . Total Robot Build Rating . | . . . Part Schematics Acquired . | . . . Parts Built . | . . . Authchips . | . . . Time . | . . . Total Part Build Rating . | . . . Parts Repaired . | . . . Time . | . . . Parts Recycled . | . . . Recycled Matter . | . . . Retrieved Matter . | . . . Retrieved Components . | . . . Parts Scanalyzed . | . . . Part Schematics Acquired . | . . . Parts Damaged . | . . . Bothacking | -11 -10 -9 ------------ Run | Yrd Mat Mat Used RIF Installer . | . . . Robots Hacked . | . . . Non-combat . | . . . Combat . | . . . Robot Hacks Applied . | . . . Relay Couplers Released . | . . . Fabnet Peak Effective % . | . . . Robots Rewired . | . . . Allies Hacked . | . . . Hacks Repelled . | . . . Allies | -11 -10 -9 -------- Run | Yrd Mat Mat Total Allies . | . . . Largest Group . | . . . Highest-Rated Group . | . . . Highest-Rated Ally . | . . . Total Orders . | . . . Ally Attacks . | . . . Total Damage . | . . . Kills . | . . . Allies Corrupted . | . . . Allies Melted . | . . . Intel | -11 -10 -9 ------- Run | Yrd Mat Mat Active Infowar (turns) . | . . . Robot Analysis Total . | . . . Derelict Logs Recovered . | . . . Drone Launches . | . . . Drone Recoveries . | . . . Exploration | -11 -10 -9 ------------- Run | Yrd Mat Mat Turns Passed 468 | 34 272 162 Spaces Moved 489 | 62 238 189 Core 489 | 62 238 189 Treads . | . . . Legs . | . . . Wheels . | . . . Hover . | . . . Flight . | . . . Fastest Speed 50 | 50 50 50 Average Speed 50 | 50 50 50 Slowest Speed 50 | 50 50 50 Overloaded Moves . | . . . Propulsion Burnouts . | . . . Robots Hopped . | . . . Potential Cave-ins . | . . . Cave-ins Triggered . | . . . Exploration Rate (%) 20 | 3 45 14 Regions Visited 2 Branch Regions . Pre-discovered Areas . | . . . Known Exits Taken . | . . . Unknown Exits Taken 2 | 1 1 . Scrap Searched . | . . . Spaces Dug . | . . . Terrain Destroyed . | . . . Melee . | . . . Projectile . | . . . AOE . | . . . Terrain Rammed . | . . . Walls Destroyed . | . . . Machines Disabled . | . . . Actions | -11 -10 -9 --------- Run | Yrd Mat Mat Total 611 | 63 316 232 Wait 62 | . 36 26 Move 487 | 61 237 189 Hop . | . . . Pick Up . | . . . Fast Attach 2 | 2 . . Attach . | . . . Detach . | . . . Swap . | . . . Drop . | . . . Fire 49 | . 37 12 Melee . | . . . Ram . | . . . Kick . | . . . Crush . | . . . Escape Stasis . | . . . Rewire . | . . . Trap . | . . . Miscellaneous 11 | . 6 5 Route ------- -11/Scrapyard -10/Materials -9/Materials History --------- Turn | Location | Event 4 | -11/Scrapyard | Discovered new exit (range 16) 23 | -11/Scrapyard | Upgraded with Propulsion slot (x1) 23 | -11/Scrapyard | Upgraded with Weapon slot (x1) 35 | -11/Scrapyard | Entered Materials 303 | -10/Materials | Discovered new exit (range 10) 307 | -10/Materials | Entered another Materials area 309 | -9/Materials | Reached level 2 312 | -9/Materials | Upgraded with Weapon slot (x1) 313 | -9/Materials | Build established: Hacker-Mutant 347 | -9/Materials | Core integrity fell below 50% 451 | -9/Materials | Reached level 3 469 | -9/Materials | Self-destructed Last Messages --------------- Reached level 2. Upgraded: Weapon Slot (+1) O-16 Technician: "IFF HANDSHAKE FAILED. SECURING TERMINAL." ALERT: Hostiles spotted, dispatching reinforcements to Terminal M012. Y-45 Defender destroyed. R-06 Scavenger collects Lgt. Treads. Connecting with Terminal... Current location identified: Materials K-01 Serf collects debris. Imp. Ion Engine melted. Heat Sink melted. Lgt. Armor Plating melted. Y-45 Defender destroyed. K-01 Serf collects debris. G-34 Mercenary suffers critical hit (Burn). Reached level 3. Aluminum Leg melted. Sml. Laser melted. G-34 Mercenary destroyed. Used Protomatter to restore core integrity (+99, depleted) Map ----- +----------------------------------------------------+ | ?????????????????????????????????????????????????? | | ?????????????????????????????????????????????????? | | ?????????????????????????????????????????????????? | | ?????????????????????????????????????????????????? | | ?????????????????????????????????????????????????? | | ?????????????????????????????????????????????????? | | ?????????????????????????????????????????????????? | | ?????????????????????????????????????????????????? | | ?????????????????????????????????????????????????? | | ?????????????????????????????????????????????????? | | ?????????????????????????????????????????????????? | | ?????????????????????????????????????????????????? | | ?????????????????????????????????????????????????? | | ?????????????????????????????????????????????????? | | ?????????????????????????????????????????????????? | | ?????????????????????????????????????????????????? | | ?????????????????????????????????????????????????? | | ?????????????????????????????????????????????????? | | ?????????????????????????????????????????????????? | | ?????????????????????????????????????????????????? | | ?????????????????????????????????????????????????? | | ?????????????????????###+###?????????????????????? | | ??????????############ ###+####### ?????????? | | ????????? a ????????? | | ????????? a ????????? | | ????????? g @ g ????????? | | ????????????????###### #####+#???????????????? | | ?????????????????????## ##?????????????????????? | | ??????????????????????# #??????????????????????? | | ??????????????????????#[% #??????????????????????? | | ??????????????????????#=%[#??????????????????????? | | ??????????????????????# ! #??????????????????????? | | ??????????????????????#r #??????????????????????? | | ???????????############ #??????????????????????? | | ???????????# #??????????????????????? | | ???????????# #??????????????????????? | | ???????????# #??????????????????????? | | ???????????###########+#####?????????????????????? | | ??????????????????# #?????????????????????? | | ??????????????????# #?????????????????????? | | ??????????????????# |! #?????????????????????? | | ??????????????????# !! #?????????????????????? | | ??????????????????# #?????????????????????? | | ??????????????????# """#?????????????????????? | | ??????????????????# """#?????????????????????? | | ??????????????????# """#?????????????????????? | | ??????????????????# #?????????????????????? | | ??????????????????#+##########???????????????????? | | ??????????????????# #?# """T"""??????????????????? | | ???????############ #?# ???????????????????? | +----------------------------------------------------+ Best States ------------- Heat Dissipation 25 Energy Generation 5 Energy Capacity 100 Matter Stores 300 Matter Capacity 300 Sight Range 16 Terrain Scan Density 10 Evasion (%) 50 Offensive Hacking 20 Item Schematics ----------------- None Robot Schematics ------------------ None Fabricated ------------ Nothing Repaired ---------- Nothing Alien Tech Used ----------------- None Achievements -------------- None Challenges ------------ None RPGLIKE | -11 -10 -9 --------- Run | Yrd Mat Mat Levels Raised 2 | . . 2 XP Earned 6000 | 3000 1100 1900 XP Spent 3800 | 3000 . 800 Upgrades 7 | 6 . 1 Propulsion Slot 1 | 1 . . Weapon Slot 2 | 1 . 1 Hack Attack % 4 | 4 . . Protomatter Created 113 | . 80 33 Integrity Restored 237 | . 138 99 Core 237 | . 138 99 Protomatter Decayed 34 | . 34 . Game ------ Seed IonLaserRedirector Manual? 0 Play Time 00:06:05 Cumulative 244.6 hours Start 2025.06.02 @ 23:06:56 End 2025.06.03 @ 10:07:41 Sessions 1 Manual Loads 0 Difficulty Rogue Special Mode Winter2019/RPGLIKE Game No. 240 Rogue 51 Adventurer 177 Explorer 12 Win Type - Total 63 Types 18/1/16/2/12/0/4/5/0/5 Lore% 54 Gallery% 52 Achievement% 69 Wizard Run 0 Options --------- Layout 0 ASCII 0 Keyboard 0 Movement Numpad Keybinds 0 Fullscreen 2 Font 12/Smallcaps Map View 83x54 Zoom Use 0% Tactical HUD 0 Map Filters NONE Filters NONE Steam X RUN: 4e97aeac-8aae-440c-8d70-db1207f0ba5e